Workbook

Sheet Calculations (hidden)
B1: Bandwidth | H1: Sensor Parameters
B2: Protocol | C2: Bandwidth (Gbps) | E2: Bitness | G2: Camera Model | H2: Sensor Type | I2: Width | J2: Height | K2: Sensor clock MHz | L2: Number of ticks for generating 2MHz clock | M2: Sample clock (Mhz) | N2: VMAX (datasheet) | O2: Blank Lines | P2: HSYNC 8bit dtatsheet | Q2: 8bit datasheet HSYNC (2Mhz clocks) | R2: HSYNC 10bit dtatsheet | S2: 10bit datasheet HSYNC (2Mhz clocks) | T2: HSYNC 12bit dtatsheet | U2: 12bit datasheet HSYNC (2Mhz clocks)
B3: CXP3 | C3: 2.5 | E3: 8 | G3: IRON 250 | H3: IMX250 | I3: =VLOOKUP(UserInterface!D25,Calculations!I27:O30,2,FALSE) -> 2448 | J3: =VLOOKUP(UserInterface!D25,Calculations!I27:O30,3,FALSE) -> 2048 | K3: 74.25 | L3: 1 | M3: =K3/L3 -> 74.25 | N3: =VLOOKUP(UserInterface!D25,Calculations!I27:O30,4,FALSE) -> 82e | O3: =HEX2DEC(N3)-J3 -> 46 | P3: =VLOOKUP(UserInterface!D25,Calculations!I27:O30,5,FALSE) -> 0D9 | Q3: =ROUNDUP(HEX2DEC(P3)/L3,0) -> 217 | R3: =VLOOKUP(UserInterface!D25,Calculations!I27:O30,6,FALSE) -> 0F5 | S3: =ROUNDUP(HEX2DEC(R3)/L3,0) -> 245 | T3: =VLOOKUP(UserInterface!D25,Calculations!I27:O30,7,FALSE) -> 18C | U3: =ROUNDUP(HEX2DEC(T3)/L3,0) -> 396
B4: CXP6 | C4: 4.9 | E4: 10 | G4: IRON 252 | H4: IMX252 | I4: =VLOOKUP(UserInterface!D25,Calculations!I31:O34,2,FALSE) -> 2048 | J4: =VLOOKUP(UserInterface!D25,Calculations!I31:O34,3,FALSE) -> 1536 | K4: 74.25 | L4: 1 | M4: =K4/L4 -> 74.25 | N4: =VLOOKUP(UserInterface!D25,Calculations!I31:O34,4,FALSE) -> 62e | O4: =HEX2DEC(N4)-J4 -> 46 | P4: =VLOOKUP(UserInterface!D25,Calculations!I31:O34,5,FALSE) -> 0D9 | Q4: =ROUNDUP(HEX2DEC(P4)/L4,0) -> 217 | R4: =VLOOKUP(UserInterface!D25,Calculations!I31:O34,6,FALSE) -> 0F5 | S4: =ROUNDUP(HEX2DEC(R4)/L4,0) -> 245 | T4: =VLOOKUP(UserInterface!D25,Calculations!I31:O34,7,FALSE) -> 18C | U4: =ROUNDUP(HEX2DEC(T4)/L4,0) -> 396
B5: CXP12 | C5: 9.8 | E5: 12 | G5: IRON 253 | H5: IMX253 | I5: =VLOOKUP(UserInterface!D25,Calculations!I35:O38,2,FALSE) -> 4096 | J5: =VLOOKUP(UserInterface!D25,Calculations!I35:O38,3,FALSE) -> 3000 | K5: 74.25 | L5: 1 | M5: =K5/L5 -> 74.25 | N5: =VLOOKUP(UserInterface!D25,Calculations!I35:O38,4,FALSE) -> bf6 | O5: =HEX2DEC(N5)-J5 -> 62 | P5: =VLOOKUP(UserInterface!D25,Calculations!I35:O38,5,FALSE) -> 163 | Q5: =ROUNDUP(HEX2DEC(P5)/L5,0) -> 355 | R5: =VLOOKUP(UserInterface!D25,Calculations!I35:O38,6,FALSE) -> 177 | S5: =ROUNDUP(HEX2DEC(R5)/L5,0) -> 375 | T5: =VLOOKUP(UserInterface!D25,Calculations!I35:O38,7,FALSE) -> 20a | U5: =ROUNDUP(HEX2DEC(T5)/L5,0) -> 522
B6: CLHS | C6: 9.8 | G6: IRON 255 | H6: IMX255 | I6: =VLOOKUP(UserInterface!D25,Calculations!I39:O42,2,FALSE) -> 4096 | J6: =VLOOKUP(UserInterface!D25,Calculations!I39:O42,3,FALSE) -> 2160 | K6: 74.25 | L6: 1 | M6: =K6/L6 -> 74.25 | N6: =VLOOKUP(UserInterface!D25,Calculations!I39:O42,4,FALSE) -> 8b6 | O6: =HEX2DEC(N6)-J6 -> 70 | P6: =VLOOKUP(UserInterface!D25,Calculations!I39:O42,5,FALSE) -> 163 | Q6: =ROUNDUP(HEX2DEC(P6)/L6,0) -> 355 | R6: =VLOOKUP(UserInterface!D25,Calculations!I39:O42,6,FALSE) -> 177 | S6: =ROUNDUP(HEX2DEC(R6)/L6,0) -> 375 | T6: =VLOOKUP(UserInterface!D25,Calculations!I39:O42,7,FALSE) -> 20a | U6: =ROUNDUP(HEX2DEC(T6)/L6,0) -> 522
B7: 10GIGE Vision | C7: 9.8 | G7: IRON 305 | H7: IMX305 | I7: =VLOOKUP(UserInterface!D25,Calculations!I43:O46,2,FALSE) -> 4096 | J7: =VLOOKUP(UserInterface!D25,Calculations!I43:O46,3,FALSE) -> 2160 | K7: 74.25 | L7: 1 | M7: =K7/L7 -> 74.25 | N7: =VLOOKUP(UserInterface!D25,Calculations!I43:O46,4,FALSE) -> 8b6 | O7: =HEX2DEC(N7)-J7 -> 70 | P7: =VLOOKUP(UserInterface!D25,Calculations!I43:O46,5,FALSE) -> none | Q7: =ROUNDUP(HEX2DEC(P7)/L7,0) ->  | R7: =VLOOKUP(UserInterface!D25,Calculations!I43:O46,6,FALSE) -> none | S7: =ROUNDUP(HEX2DEC(R7)/L7,0) ->  | T7: =VLOOKUP(UserInterface!D25,Calculations!I43:O46,7,FALSE) -> 20a | U7: =ROUNDUP(HEX2DEC(T7)/L7,0) -> 522
H9: Max Width of Selected Sensor: | I9: =VLOOKUP(UserInterface!B23,Calculations!G3:I7,3,FALSE) -> 2448
H10: Max Height of Selected Sensor: | I10: =VLOOKUP(UserInterface!B23,Calculations!G3:J7,4,FALSE) -> 2048
H12: Calculation
H13: Protocol Bandwidth (Gbps) | I13: =VLOOKUP((UserInterface!D29),B3:C7,2,FALSE) -> 9.8
H14: Sample clock | I14: =VLOOKUP((UserInterface!B23),G3:U7,7,FALSE) -> 74.25
H15: Shortest HSYNC (2Mhz clocks) | I15: =VLOOKUP((UserInterface!B23),G3:U7,(UserInterface!D28+3),FALSE) -> 217
H16: Shortest HSYNC (us) | I16: =I15/I14 -> 2.922558923
H17: Bits per line | I17: =UserInterface!D27*(UserInterface!D28) -> 19584
H18: Line duration (Limited by bandwidth) (us) | I18: =I17/(I13*1000) -> 1.998367347
H19: Line duration (Sensor and bandwidth limited) (us) | I19: =MAX(I16,I18) -> 2.922558923
H20: HSYNC Actual (2Mhz clocks) | I20: =CEILING(I19*I14,1) -> 217
H21: Line duration Actual (After 2Mhz roundup) (us) | I21: =I20/I14 -> 2.922558923
H22: Sensor Blank Lines | I22: =VLOOKUP((UserInterface!B23),G3:U7,9,FALSE) -> 46
H23: Total frame time (us) | I23: =I21*(UserInterface!D26+I22) -> 6119.838384
H24: Frame rate (fps) | I24: =1000000/I23 -> 163.4030079
B26: Sensor Read Out Mode | H26: Sensor Type | I26: Read out mode | J26: Width | K26: Height | L26: VMAX (datasheet) | M26: HSYNC 8bit dtatsheet | N26: HSYNC 10bit dtatsheet | O26: HSYNC 12bit dtatsheet
B27: All Pixels | H27: IMX250 | I27: All Pixels | J27: 2448 | K27: 2048 | L27: 82e | M27: 0D9 | N27: 0F5 | O27: 18C
B28: 1/2 Subsampling | I28: 1/2 Subsampling | J28: 1220 | K28: 1024 | L28: 42a | M28: 0da | N28: 104 | O28: 18c
B29: Vertical 2pxl FD Binning | I29: Vertical 2pxl FD Binning | J29: 2448 | K29: 1024 | L29: 42a | M29: 0d9 | N29: 0f5 | O29: 18c
B30: 2x2 vertical FD Binning | I30: 2x2 vertical FD Binning | J30: NONE | K30: NONE | L30: NONE | M30: NONE | N30: NONE | O30: NONE
H31: IMX252 | I31: All Pixels | J31: 2048 | K31: 1536 | L31: 62e | M31: 0D9 | N31: 0F5 | O31: 18C
I32: 1/2 Subsampling | J32: 1024 | K32: 768 | L32: 32A | M32: 0d9 | N32: 0f5 | O32: 18c
I33: Vertical 2pxl FD Binning | J33: 2048 | K33: 768 | L33: 32a | M33: 0d9 | N33: 0f5 | O33: 18c
I34: 2x2 vertical FD Binning | J34: NONE | K34: NONE | L34: NONE | M34: NONE | N34: NONE | O34: NONE
H35: IMX253 | I35: All Pixels | J35: 4096 | K35: 3000 | L35: bf6 | M35: 163 | N35: 177 | O35: 20a
I36: 1/2 Subsampling | J36: 2048 | K36: 1500 | L36: 616 | M36: 163 | N36: 177 | O36: 20a
I37: Vertical 2pxl FD Binning | J37: NONE | K37: NONE | L37: NONE | M37: NONE | N37: NONE | O37: NONE
I38: 2x2 vertical FD Binning | J38: NONE | K38: NONE | L38: NONE | M38: NONE | N38: NONE | O38: NONE
H39: IMX255 | I39: All Pixels | J39: 4096 | K39: 2160 | L39: 8b6 | M39: 163 | N39: 177 | O39: 20a
I40: 1/2 Subsampling | J40: 2048 | K40: 1080 | L40: 476 | M40: 164 | N40: 177 | O40: 20a
I41: Vertical 2pxl FD Binning | J41: 4096 | K41: 1080 | L41: 476 | M41: 164 | N41: 177 | O41: 20a
I42: 2x2 vertical FD Binning | J42: 2048 | K42: 1080 | L42: 476 | M42: 164 | N42: 177 | O42: 20a
H43: IMX305 | I43: All Pixels | J43: 4096 | K43: 2160 | L43: 8b6 | M43: none | N43: none | O43: 20a
I44: 1/2 Subsampling | J44: 2048 | K44: 1080 | L44: NONE | M44: NONE | N44: NONE | O44: 20a
I45: Vertical 2pxl FD Binning | J45: NONE | K45: NONE | L45: NONE | M45: NONE | N45: NONE | O45: NONE
I46: 2x2 vertical FD Binning | J46: NONE | K46: NONE | L46: NONE | M46: NONE | N46: NONE | O46: NONE

Sheet UserInterface (hidden)
B4: IRON
B7: Frame-Rate Calculator
B15: This document is provided as a simple and convinent tool for our customers to use. Please feel free to contact our support team with any questions - we will be happy to provide assitance and support! For more information, products and the latest updates visit our website, www.KayaInstruments.com
B20: Camera Selector
B22: Select a camera model from the drop-down menu below:
A23: Selector u | B23: IRON 250
C24: =VLOOKUP(B23,Calculations!G3:J7,4,FALSE)&" (V) x "&VLOOKUP(B23,Calculations!G3:J7,3,FALSE)&" (H)" -> 2048 (V) x 2448 (H)
B25: Sensor Read Out Mode Selection: | D25: All Pixels
B26: Number of Desired lines (V) | D26: 2048
B27: Desired Number of Horizontal Pixels (H) | D27: 2448
B28: Bitness Selection: | D28: 8
B29: Interface Selection: | D29: CXP12
B30: MAX Frame Rate: | D30: =IF(OR(D26="Please Type Number of Desired Lines...",D27="Please Type Desired Width...",D28="Please Select...",D29="Please Select..."),"Not Enough Data",Calculations!I24) -> 163.4030079

Sheet Start
B18: You must enable macros in order to use this calculator!
